Cogmind - Beta 15 @@@ ROGUE MODE // 2025.07.28 @ 19:54:33 Player: bugsniper Result: Self-destructed Performance ------------- Evolutions (2) 1000 Regions Visited (3) 600 Robots Destroyed (29) 145 Value Destroyed (798) 798 Prototype IDs (1) 20 Alien Tech Used (0) 0 Bonus (0) 0 TOTAL SCORE: 2563 Bonus ------- None Cogmind --------- Core Integrity 550/550 Matter 300/300 Energy 100/100 System Corruption 0% Temperature Cool (0) Movement Treading (160) Location -8/Materials Parts ------- > --- POWER (1+1) ------ (None) > --- PROPULSION (3+1) - Light Treads Light Treads > --- UTILITY (5+1) ---- Large Storage Unit Rainbow Chip > --- WEAPON (2+1) ----- Subdweller Beam Cannon Subdweller Machine Gun Battle Cannon (+) > --- INVENTORY (15) --- Subdweller Power Source Light Treads Aluminum Leg Aluminum Leg Subdweller Monowheel Subdweller Optics Subdweller Laser Battle Rifle Subdweller Machine Gun Heavy Battle Rifle Battle Cannon Subdweller Shrapnel Launcher Subdweller Shrapnel Launcher Multitool Peak State ------------ > --- POWER ------------ Subdweller Power Source > --- PROPULSION ------- Subdweller Monowheel Subdweller Monowheel > --- UTILITY ---------- Subdweller Optics Rainbow Chip > --- WEAPON ----------- Subdweller Machine Gun Light Cannon Battle Cannon > --- INVENTORY -------- Light Treads Subdweller Shrapnel Launcher [Rating: 26] Favorites ----------- Power Ion Engine Engine Ion Engine Propulsion Light Treads Treads Light Treads Leg Aluminum Leg Wheel Subdweller Monowheel Utility Large Storage Unit Device Subdweller Optics Storage Large Storage Unit Processor Rainbow Chip Protection Utility Shielding Weapon Battle Cannon Energy Cannon Subdweller Beam Cannon Ballistic Gun Assault Rifle Ballistic Cannon Battle Cannon Launcher Grenade Launcher Build | -11 -10 -10 -8 ------- Run | Yrd Mat Sub Mat Slots Evolved 4 | . . . 4 Power . | . . . . Propulsion 1 | . . . 1 Utility 3 | . . . 3 Weapon . | . . . . Parts Attached 21 | . 9 12 . Power 2 | . 1 1 . Engine 2 | . 1 1 . Core . | . . . . Reactor . | . . . . Propulsion 6 | . 4 2 . Treads 4 | . 4 . . Leg . | . . . . Wheel 2 | . . 2 . Hover . | . . . . Flight . | . . . . Utility 5 | . 2 3 . Device 1 | . . 1 . Storage 1 | . 1 . . Processor 1 | . . 1 . Hackware . | . . . . Protection 2 | . 1 1 . Artifact . | . . . . Weapon 8 | . 2 6 . Energy Gun . | . . . . Energy Cannon 1 | . . 1 . Ballistic Gun 3 | . 1 2 . Ballistic Cannon 3 | . . 3 . Launcher 1 | . 1 . . Special Weapon . | . . . . Impact Weapon . | . . . . Slashing Weapon . | . . . . Piercing Weapon . | . . . . Special Melee Weapon . | . . . . Unidentified Prototypes 1 | . . 1 . Parts Lost 5 | . . 5 . Power . | . . . . Propulsion 1 | . . 1 . Utility 1 | . . 1 . Weapon 3 | . . 3 . Highest Loss Streak 3 | . . 3 . To Critical Strikes . | . . . . Average Backups 8 | . 9 8 14 Power . | . 1 . 1 Propulsion 4 | . 5 3 4 Utility . | . . . 1 Weapon 2 | . 1 2 7 Tool/Special . | . . . . Unused Backups 26 | . 9 6 11 Power 4 | . 2 1 1 Propulsion 8 | . 2 3 3 Utility 4 | . 3 1 . Weapon 8 | . 2 . 6 Tool/Special 2 | . . 1 1 Average Slot Usage (%) 85 | . 98 81 46 Engine 11 | . 14 10 . Treads 22 | . 23 22 13 Leg 1 | . 4 . . Storage 8 | . 14 6 6 Processor 3 | . . 4 6 Protection 8 | . 12 7 . Energy Cannon 1 | . . 2 6 Ballistic Gun 12 | . 28 7 6 Ballistic Cannon 12 | . . 17 6 Peak Build Rating 26 | . 8 26 24 Average Rating 14 | . 7 16 24 On Entrance 11 | 6 6 8 24 Naked Turns . | . . . . Heaviest Build 40 | 13 30 40 35 Greatest Support 40 | 20 40 40 40 Greatest Overweight (x) 5 | . . 5 . Average Overweight (x) . | . . . . Largest Inventory Capacity 15 | . 15 15 15 Average Capacity 11 | . 12 10 15 Most Carried 15 | . 11 15 14 Average Carried 8 | . 9 8 14 Final Capacity 15 | 8 15 15 15 Final Carried 14 | 6 11 14 14 Class Distribution -------------------- 65% | Mutant 25% | Gunner 7% | Skirmisher Dominant Class ---------------- Mutant | -10/Materials Mutant | -10/Subcaves Gunner | -8/Materials Resources | -11 -10 -10 -8 ----------- Run | Yrd Mat Sub Mat Matter Collected 1162 | 200 365 597 . Remotely . | . . . . Salvage Created 798 | . 478 320 . Parts 54 | . 30 24 . Haulers Intercepted 1 | . 1 . . Recyclers Shooed 1 | . 1 . . Parts Field Recycled . | . . . . Retrieved Matter . | . . . . Parts Self-Destructed 7 | . . 7 . Prevented . | . . . . Kills | -11 -10 -10 -8 ------- Run | Yrd Mat Sub Mat Combat Hostiles Destroyed 24 | . 12 12 . Guns 11 | . 9 2 . Cannons 8 | . . 8 . AOE 5 | . 3 2 . Classes Destroyed 8 | . 7 1 . Worker 1 | . 1 . . Hauler 1 | . 1 . . Recycler 1 | . 1 . . Operator 1 | . 1 . . Watcher 1 | . 1 . . Swarmer 6 | . 6 . . Grunt 6 | . 6 . . Subdweller 12 | . . 12 . Best Kill Streak 6 | . 6 2 . Combat Bots Only 3 | . 3 2 . Max Kills in Single Turn 2 | . 2 1 . Gunslinging . | . . . . Exploded 1 | . 1 1 . Melee . | . . . . Uniques/NPCs Destroyed . | . . . . Combat | -11 -10 -10 -8 -------- Run | Yrd Mat Sub Mat Hostile Shots Fired 119 | . 47 72 . Missed 35 | . 14 21 . Hits 84 | . 33 51 . Projectile 84 | . 33 51 . Critical Strikes 1 | . . 1 . Damage Taken 1455 | . 347 1108 . Core 185 | . 78 107 . Absorbed by Shields . | . . . . Redirected to Shielding 2 | . 2 . . Core Remaining (%) 63 | 100 . 26 . Volleys Fired 90 | . 45 45 . Largest 3 | . 2 3 . Hottest 143 | . 40 143 . Shots Fired 176 | . 86 90 . Gun 105 | . 82 23 . Cannon 61 | . . 61 . Launcher 10 | . 4 6 . Special . | . . . . Kinetic 165 | . 82 83 . Thermal 1 | . . 1 . Explosive 10 | . 4 6 . Electromagnetic . | . . . . Robot Hit Streak 15 | . 7 15 . Robot Miss Streak 5 | . 5 2 . Penetration Max . | . . . . Secondary Targets 3 | . 3 . . Max Gunslinging Chain 1 | . 1 . . Shots Hit Robots 119 | . 49 70 . Core Hits 45 | . 22 23 . Critical Kills 1 | . . 1 . Critical Parts Destroyed . | . . . . Critical Strikes 2 | . . 2 . Destroy 1 | . . 1 . Blast 1 | . . 1 . Melee Attacks . | . . . . Impact . | . . . . Slashing . | . . . . Piercing . | . . . . Sneak Attacks . | . . . . Combat Hostiles . | . . . . Follow-up Attacks . | . . . . Damage Inflicted 2410 | . 937 1473 . Guns 933 | . 633 300 . Cannons 960 | . . 960 . Explosions 513 | . 300 213 . Melee . | . . . . Ramming 4 | . 4 . . Kinetic 1867 | . 633 1234 . Thermal 26 | . . 26 . Explosive 513 | . 300 213 . Electromagnetic . | . . . . Impact . | . . . . Slashing . | . . . . Piercing . | . . . . Highest Corruption . | . . . . Average Corruption . | . . . . Corruption Purged . | . . . . Corruption Blocked . | . . . . Overload Shots . | . . . . Overflow Damage 57 | . 57 . . Projectiles . | . . . . Explosions 57 | . 57 . . Melee . | . . . . Knockbacks 15 | . . 15 . Impact . | . . . . Kinetic 15 | . . 15 . Secondary . | . . . . Self-Inflicted Damage . | . . . . Shots . | . . . . Rammed 1 | . 1 . . Targets Rammed 1 | . 1 . . Kicked . | . . . . Crushed . | . . . . Highest Temperature 27 | . 2 27 . Average Temperature 6 | . 2 20 . Received Heat Transfer 348 | . 120 228 . Siege Activations . | . . . . Martial Activations . | . . . . Shielding Activations . | . . . . Robots Disrupted . | . . . . Combat Hostiles . | . . . . Robots Corrupted . | . . . . Combat Hostiles . | . . . . Parts Fried . | . . . . Impact Corruptions . | . . . . Robots Melted . | . . . . Combat Hostiles . | . . . . Parts Melted 1 | . . 1 . Heat Transferred 37 | . . 37 . Parts Sabotaged . | . . . . Parts Stolen . | . . . . Parts Stripped . | . . . . Power Chain Reactions . | . . . . Alert | -11 -10 -10 -8 ------- Run | Yrd Mat Sub Mat Maximum Alert Level . | . . . . Low Security (%) 100 | . 100 . 100 Level 1 . | . . . . Level 2 . | . . . . Level 3 . | . . . . Level 4 . | . . . . Level 5 . | . . . . High Security . | . . . . Max Security . | . . . . Peak Influence 112 | . 112 . . Initial . | . . . . Average 36 | . 37 . . Influence Increases 337 | . 337 . . Destroy 0b10 Robot/C 240 | . 240 . . Destroy 0b10 Robot/NC 25 | . 25 . . Destroy Leader 54 | . 54 . . Successful Hack 4 | . 4 . . Destroy Structure 14 | . 14 . . Influence Decreases 337 | . 337 . . Time Decay 337 | . 337 . . Squads Dispatched 2 | . 2 . . Investigation 1 | . 1 . . Extermination . | . . . . Reinforcement 1 | . 1 . . Assault . | . . . . Garrison . | . . . . Intercept . | . . . . Searches Triggered . | . . . . Construction Impeded . | . . . . Haulers Reinforced . | . . . . Active Scanning Responses . | . . . . Cargo Convoy Interrupts . | . . . . Stealth | -11 -10 -10 -8 --------- Run | Yrd Mat Sub Mat Distress Signals 1 | . 1 . . Communications Jammed . | . . . . Distress Signals . | . . . . Times Spotted 29 | . 16 12 1 Peak Tracking Total 4 | . 4 2 1 Tactical Retreats . | . . . . Traps | -11 -10 -10 -8 ------- Run | Yrd Mat Sub Mat Traps Triggered 1 | . . 1 . Indirectly . | . . . . Trap Hack Attempts . | . . . . Triggered . | . . . . Disarmed . | . . . . Reprogrammed . | . . . . Reused . | . . . . Traps Extracted . | . . . . Installed . | . . . . Triggered . | . . . . Machines | -11 -10 -10 -8 ---------- Run | Yrd Mat Sub Mat Machines Disabled . | . . . . Max in Single Turn . | . . . . Machines Repaired . | . . . . Machines Dismantled . | . . . . Machines Sabotaged . | . . . . Overloaded Fab Kills . | . . . . Hacking | -11 -10 -10 -8 --------- Run | Yrd Mat Sub Mat Machines Accessed 1 | . 1 . . Terminals 1 | . 1 . . Fabricators . | . . . . Repair Stations . | . . . . Recycling Units . | . . . . Scanalyzers . | . . . . Garrison Access . | . . . . Total Hacks 3 | . 3 . . Successful 1 | . 1 . . Failed 2 | . 2 . . Catastrophic 1 | . 1 . . Database Lockouts . | . . . . Manual 2 | . 2 . . Terminals 3 | . 3 . . Fabricators . | . . . . Repair Stations . | . . . . Recycling Units . | . . . . Scanalyzers . | . . . . Garrison Access . | . . . . Terminal Hacks 1 | . 1 . . Locate Traps 1 | . 1 . . Fabricator Hacks . | . . . . Repair Station Hacks . | . . . . Recycling Unit Hacks . | . . . . Scanalyzer . | . . . . Garrison Access Hacks . | . . . . Unauthorized Hacks . | . . . . Terminals . | . . . . Fabricators . | . . . . Repair Stations . | . . . . Recycling Units . | . . . . Scanalyzers . | . . . . Garrison Access . | . . . . Data Cores Recovered 1 | . 1 . . Used . | . . . . Hacking Detections 1 | . 1 . . Full Trace Events 1 | . 1 . . Feedback Events . | . . . . Feedback Blocked . | . . . . Robot Schematics Acquired . | . . . . Robots Built . | . . . . Authchips . | . . . . Time . | . . . . Total Robot Build Rating . | . . . . Part Schematics Acquired . | . . . . Parts Built . | . . . . Authchips . | . . . . Time . | . . . . Total Part Build Rating . | . . . . Parts Repaired . | . . . . Time . | . . . . Parts Recycled . | . . . . Recycled Matter . | . . . . Retrieved Matter . | . . . . Retrieved Components . | . . . . Parts Scanalyzed . | . . . . Part Schematics Acquired . | . . . . Parts Damaged . | . . . . Bothacking | -11 -10 -10 -8 ------------ Run | Yrd Mat Sub Mat Used RIF Installer . | . . . . Robots Hacked . | . . . . Non-combat . | . . . . Combat . | . . . . Robot Hacks Applied . | . . . . Relay Couplers Released . | . . . . Fabnet Peak Effective % . | . . . . Robots Rewired . | . . . . Allies Hacked . | . . . . Hacks Repelled . | . . . . Allies | -11 -10 -10 -8 -------- Run | Yrd Mat Sub Mat Total Allies . | . . . . Largest Group . | . . . . Highest-Rated Group . | . . . . Highest-Rated Ally . | . . . . Total Orders . | . . . . Ally Attacks . | . . . . Total Damage . | . . . . Kills . | . . . . Allies Corrupted . | . . . . Allies Melted . | . . . . Intel | -11 -10 -10 -8 ------- Run | Yrd Mat Sub Mat Active Infowar (turns) 280 | . . 280 . Optics 280 | . . 280 . Robot Analysis Total . | . . . . Derelict Logs Recovered 1 | . . 1 . Drone Launches . | . . . . Drone Recoveries . | . . . . Exploration | -11 -10 -10 -8 ------------- Run | Yrd Mat Sub Mat Turns Passed 3599 | . 944 2635 20 Spaces Moved 1920 | 1 403 1504 12 Core 5 | . . 5 . Treads 1734 | . 338 1384 12 Legs 66 | 1 65 . . Wheels 115 | . . 115 . Hover . | . . . . Flight . | . . . . Fastest Speed 110 | 120 120 110 160 Average Speed 155 | 120 153 156 160 Slowest Speed 300 | 120 160 300 160 Overloaded Moves . | . . . . Propulsion Burnouts . | . . . . Robots Hopped . | . . . . Potential Cave-ins . | . . . . Cave-ins Triggered . | . . . . Exploration Rate (%) 31 | 2 85 37 2 Regions Visited 3 Branch Regions 1 Pre-discovered Areas 1 | . . 1 . Known Exits Taken . | . . . . Unknown Exits Taken 3 | 1 1 1 . Scrap Searched 15 | . . 15 . Spaces Dug . | . . . . Terrain Destroyed 39 | . 20 19 . Melee . | . . . . Projectile . | . . . . AOE 39 | . 20 19 . Terrain Rammed . | . . . . Walls Destroyed . | . . . . Machines Disabled . | . . . . Actions | -11 -10 -10 -8 --------- Run | Yrd Mat Sub Mat Total 2354 | . 642 1700 12 Wait 248 | . 171 77 . Move 1917 | . 402 1503 12 Hop . | . . . . Pick Up 31 | . 7 24 . Fast Attach 7 | . 1 6 . Attach 9 | . . 9 . Detach 1 | . . 1 . Swap 16 | . 9 7 . Drop 28 | . 6 22 . Fire 90 | . 45 45 . Melee . | . . . . Ram . | . . . . Kick . | . . . . Crush 1 | . 1 . . Escape Stasis . | . . . . Rewire 1 | . . 1 . Trap . | . . . . Miscellaneous 5 | . . 5 . Route ------- -11/Scrapyard -10/Materials (discovered 4 exits: [*Mat x2] / [*Min] / [*Sub]) -10/Subcaves (discovered 2 exits: [*Mat x2]) -8/Materials History --------- Turn | Location | Event 1 | -11/Scrapyard | Discovered new exit (range 0) 1 | -11/Scrapyard | Entered Materials 217 | -10/Materials | Discovered new exit (range 13) 318 | -10/Materials | Build established: Mutant 617 | -10/Materials | Discovered new exit (range 8) 761 | -10/Materials | Discovered new exit (range 13) 934 | -10/Materials | Discovered new exit (range 7) 945 | -10/Materials | Entered Subcaves 946 | -10/Subcaves | Approached by a straggling Scientist 1019 | -10/Subcaves | Discovered new exit (range 15) 1155 | -10/Subcaves | Disturbed a concealed Subdweller 1250 | -10/Subcaves | Discovered new exit (range 8) 1850 | -10/Subcaves | Ambushed by Subdwellers from Twisted Machinery 1852 | -10/Subcaves | Core integrity fell below 50% 2325 | -10/Subcaves | A Subdweller sparked back to life 2325 | -10/Subcaves | A Subdweller sparked back to life 2386 | -10/Subcaves | Found Prototype Processor 2386 | -10/Subcaves | Identified Rainbow Chip 2387 | -10/Subcaves | Attached Rainbow Chip, gained temporary slots: Power, Propulsion, Utility, Weapon 2401 | -10/Subcaves | Lost 3 parts (1n1u1w) 2952 | -10/Subcaves | A Subdweller sparked back to life 2979 | -10/Subcaves | Build established: Gunner 3580 | -10/Subcaves | Entered Materials 3580 | -8/Materials | Evolved 4 slots: Propulsion x1, Utility x3 3600 | -8/Materials | Self-destructed Last Messages --------------- 03403_ Found Hvy. Battle Rifle. 03403_ Found 33 Matter. 03405_ Searching scrap... 03405_ Found Sub. Monowheel. 03405_ Found 70 Matter. 03406_ Searching scrap... 03406_ Found Sub. Shrapnel Launcher. 03406_ Found 66 Matter. 03408_ Searching scrap... 03408_ Found Battle Rifle. 03408_ Found Enh. Flamer. 03408_ Found 36 Matter. 03418_ Acquired Sub. Shrapnel Launcher. 03428_ Acquired Hvy. Battle Rifle. 03431_ Acquired Battle Rifle. 03440_ Acquired Sub. Laser. 03444_ Subatomizers dissect the Sub. Monowheel. PARAMETERS=PROPULSION+1,UTILITY+3 LOCATION=UNKNOWN GOAL=ESCAPE Map ----- +----------------------------------------------------+ | ??????????????????????????????????????????? | | ??????????????????????????????????????????? | | ??????????????????????????????????????????? | | ??????????????????????????????????????????? | | ??????????????????????????????????????????? | | ??????????????????????????????????????????? | | ??????????????????????????????????????????? | | ??????????????????????????????????????????? | | ??????????????????????????????????????????? | | ??????????????????????????????????????????? | | ??????????????????????? ????????????????? | | ??????????????????????#w ????????????????? | | ??????????????????????# ????????????????? | | ??????????????????????# #???????????????? | | ??????????????????????# ???????????????? | | ??????????????????????+ ???????????????? | | ??????????????????????# ???????????????? | | ??????????????????????# #???????????????? | | ??????????????????????# #???????????????? | | ??????????????????????# #???????????????? | | ??????????????????????# #???????????????? | | ??????????????????????# +???????????????? | | ??????????????????????# #???????????????? | | ??????????????????????# #???????????????? | | ??????????????????????# #???????????????? | | ??????????????????????# @#???????????????? | | ??????????????????????# #???????????????? | | ??????????????????????# #???????????????? | | ??????????????????????# #???????????????? | | ??????????????????????# #???????????????? | | ??????????????????????# #???????????????? | | ??????????????????????# +???????????????? | | ??????????????????????# #???????????????? | | ??????????????????????# #???????????????? | | ??????????????????????# #???????????????? | | ??????????????????????# #???????????????? | | ??????????????????????# +???????????????? | | ??????????????????????# #???????????????? | | ??????????????????????# #???????????????? | | ??????????????????????#####???????????????? | | ??????????????????????????????????????????? | | ??????????????????????????????????????????? | | ??????????????????????????????????????????? | | ??????????????????????????????????????????? | | ??????????????????????????????????????????? | | ??????????????????????????????????????????? | | ??????????????????????????????????????????? | | ??????????????????????????????????????????? | | | | | +----------------------------------------------------+ Best States ------------- Heat Dissipation 31 Energy Generation 15 Energy Capacity 250 Matter Stores 300 Matter Capacity 300 Sight Range 21 Terrain Scan Density 10 Armor Coverage 800 Utility Shielding 33 Evasion (%) 55 Recoil Reduction 2 Item Schematics ----------------- None Robot Schematics ------------------ None Fabricated ------------ Nothing Repaired ---------- Nothing Alien Tech Used ----------------- None Achievements -------------- None Challenges ------------ None Game ------ Seed BraceExoskeletonRedirector Manual? 0 Play Time 00:23:32 Cumulative 425.7 hours Start 2025.07.28 @ 17:08:55 End 2025.07.28 @ 19:54:33 Sessions 1 Manual Loads 0 Difficulty Rogue Special Mode None Game No. 242 Rogue 242 Adventurer 0 Explorer 0 Win Type - Total 11 Types 10/0/1/0/0/0/0/0/0/0 Lore% 62 Gallery% 65 Achievement% 53 Wizard Run 0 Options --------- Layout 1 ASCII 0 Keyboard 0 Movement Numpad Keybinds 0 Fullscreen 1 Font 24/Smallcaps Map View 50x35 Zoom Use 0% Tactical HUD 1 Map Filters NONE Filters NONE Steam 1 RUN: 9cd57f96-fb8b-4741-af43-fab6f3ef3265